fUSD/lending_fUSD_20260628
["ID","MTS","AMOUNT","RATE_DAILY","PERIOD"]
[426540506,1782570646000,-788.47456397,0.00015,2]
[426540507,1782570646000,-585.17472321,0.00015,2]
[426540505,1782570646000,-568.65169959,0.00015,2]
[426540508,1782570646000,-80348.35464124,0.00015,2]
[426540509,1782570646000,-254135.34320982,0.00015,2]
[426540511,1782570646000,-500.0,0.00015,2]
[426540510,1782570646000,-436.23,0.00015,2]
[426540529,1782570648000,-5963.81914849,0.00015,2]
[426540517,1782570648000,-3943.07588254,0.00015,2]
[426540516,1782570648000,-4414.9957573,0.00015,2]
[426540518,1782570648000,-902.01340107,0.00015,2]
[426540519,1782570648000,-6855.90067227,0.00015,2]
[426540522,1782570648000,-1226.85239246,0.00015,2]
[426540520,1782570648000,-6823.49403011,0.00015,2]
[426540523,1782570648000,-1031.60247859,0.00015,2]
[426540525,1782570648000,-344.56,0.00015,2]
[426540524,1782570648000,-454.68174005,0.00015,2]
[426540526,1782570648000,-572.98249009,0.00015,2]
[426540528,1782570648000,-1829.51483852,0.00015,2]
[426540527,1782570648000,-1000.0,0.00015,2]
[426540521,1782570648000,-39528.86071926,0.00015,2]
[426540531,1782570649000,-2129.9886394,0.00015,2]
[426540533,1782570649000,-3464.34299536,0.00015,2]
[426540535,1782570649000,-2351.81371741,0.00015,2]
[426540537,1782570649000,-1625.68933338,0.00015,2]
[426540538,1782570649000,-106295.8754507,0.00015,2]
[426540543,1782570649000,-2062.63944807,0.00015,2]
[426540539,1782570649000,-508.0,0.00015,2]
[426540541,1782570649000,-2361.38533961,0.00015,2]
[426540545,1782570649000,-5157.66391673,0.00015,2]
[426540548,1782570754000,132713.02548627,0.00037449,120]
[426540556,1782571305000,500.0,0.00037437,120]
[426540555,1782571305000,500.0,0.00037437,120]
[426540562,1782571455000,500.0,0.00037437,120]
[426540561,1782571455000,500.0,0.00037437,120]
[426540560,1782571455000,500.0,0.00037437,120]
[426540566,1782571456000,500.0,0.00037437,120]
[426540565,1782571456000,500.0,0.00037437,120]
[426540564,1782571456000,500.0,0.00037437,120]
[426540567,1782571457000,500.0,0.00037437,120]
[426540568,1782571457000,500.0,0.00037437,120]
[426540569,1782571457000,500.0,0.00037437,120]
[426540573,1782571458000,500.0,0.00037437,120]
[426540572,1782571458000,500.0,0.00037437,120]
[426540571,1782571458000,500.0,0.00037437,120]
[426540570,1782571458000,500.0,0.00037437,120]
[426540576,1782571459000,500.0,0.00037437,120]
[426540575,1782571459000,500.0,0.00037437,120]
[426540574,1782571459000,500.0,0.00037437,120]
[426540577,1782571460000,500.0,0.00037437,120]
[426540579,1782571460000,500.0,0.00037437,120]
[426540578,1782571460000,500.0,0.00037437,120]
[426540580,1782571461000,501.19076952,0.00037437,120]
[426540581,1782571503000,150.0,0.00011959,2]
[426540582,1782571504000,150.0,0.00011959,2]
[426540583,1782571506000,150.0,0.00011959,2]
[426540584,1782571509000,150.0,0.00011959,2]
[426540585,1782571512000,150.0,0.00011959,2]
[426540586,1782571572000,151.0,0.00011302,2]
[426540587,1782571575000,151.0,0.00011302,2]
[426540588,1782571579000,151.0,0.00011302,2]
[426540589,1782571631000,605.428597,0.00011875,3]
[426540591,1782571706000,166.66,0.00011818,2]
[426540590,1782571706000,166.66,0.00011575,2]
[426540608,1782571831000,-5702.79087654,0.00012465,2]
[426540603,1782571831000,-189.05,0.00012329,2]
[426540604,1782571831000,-2412.49013889,0.00012418,2]
[426540602,1782571831000,-166.66,0.00012306,2]
[426540601,1782571831000,-297.0,0.00012302,2]
[426540596,1782571831000,-271.90586894,0.0001205,2]
[426540606,1782571831000,-161.37,0.00012465,2]
[426540605,1782571831000,-150.0,0.00012428,2]
[426540597,1782571831000,-547.18635306,0.0001205,2]
[426540598,1782571831000,-166.66,0.00012062,2]
[426540599,1782571831000,-481.81,0.00012073,2]
[426540600,1782571831000,-182.87,0.00012275,2]
[426540609,1782571831000,-150.0,0.00012532,2]
[426540607,1782571831000,-4297.19912346,0.00012465,2]
[426540611,1782571831000,-9999.99,0.00012532,2]
[426540610,1782571831000,-1635.62,0.00012532,2]
[426540619,1782571831000,-999.99,0.00012532,2]
[426540620,1782571831000,-5765.04471238,0.00012532,2]
[426540625,1782571831000,-67832.85217907,0.00012532,2]
[426540624,1782571831000,-3719.0667568,0.00012532,2]
[426540618,1782571831000,-150.99,0.00012532,2]
[426540622,1782571831000,-515.87853082,0.00012532,2]
[426540616,1782571831000,-354.47,0.00012532,2]
[426540613,1782571831000,-1585.57,0.00012532,2]
[426540615,1782571831000,-5810.62,0.00012532,2]
[426540614,1782571831000,-9818.05,0.00012532,2]
[426540612,1782571831000,-372.2,0.00012532,2]
[426540617,1782571831000,-158.25,0.00012532,2]
[426540662,1782571838000,-856.93352141,0.00013093,2]
[426540660,1782571838000,-856.93352141,0.00013093,2]
[426540657,1782571838000,-236.04928457,0.00013093,2]
[426540663,1782571838000,-856.93352141,0.00013093,2]
[426540658,1782571838000,-856.93352141,0.00013093,2]
[426540661,1782571838000,-856.93352141,0.00013093,2]
[426540656,1782571838000,-550.60821476,0.00013093,2]
[426540659,1782571838000,-856.93352141,0.00013093,2]
[426540667,1782571838000,-856.93352141,0.00013093,2]
[426540666,1782571838000,-856.93352141,0.00013093,2]
[426540669,1782571838000,-856.93352141,0.00013093,2]
[426540670,1782571838000,-856.93352141,0.00013093,2]
[426540668,1782571838000,-856.93352141,0.00013093,2]
[426540672,1782571838000,-830.24886166,0.00013093,2]
[426540654,1782571838000,-500.0,0.00013093,2]
[426540677,1782571838000,-856.93352141,0.00013093,2]
[426540680,1782571838000,-856.93352141,0.00013093,2]
[426540673,1782571838000,-26.68465975,0.00013093,2]
[426540664,1782571838000,-856.93352141,0.00013093,2]
[426540665,1782571838000,-856.93352141,0.00013093,2]
[426540646,1782571838000,-166.66,0.00012793,2]
[426540653,1782571838000,-500.0,0.00013093,2]
[426540682,1782571838000,-856.93352141,0.00013093,2]
[426540635,1782571838000,-5731.91782093,0.00012532,2]
[426540636,1782571838000,-455.72619541,0.00012532,2]
[426540637,1782571838000,-9544.26380459,0.00012532,2]
[426540638,1782571838000,-299.99,0.00012532,2]
[426540639,1782571838000,-1576.76,0.00012532,2]
[426540640,1782571838000,-166.66,0.00012549,2]
[426540641,1782571838000,-216.51184279,0.00012594,2]
[426540655,1782571838000,-178.19623894,0.00013093,2]
[426540642,1782571838000,-44.22320823,0.00012623,2]
[426540648,1782571838000,-235.8413985,0.00012888,2]
[426540645,1782571838000,-235.84139851,0.00012681,2]
[426540647,1782571838000,-200.05176506,0.00012842,2]
[426540650,1782571838000,-1187.89,0.00013057,2]
[426540644,1782571838000,-150.0,0.00012623,2]
[426540649,1782571838000,-168.85,0.00012927,2]
[426540651,1782571838000,-770.71,0.00013092,2]
[426540652,1782571838000,-391.15157896,0.00013093,2]
[426540643,1782571838000,-105.77679177,0.00012623,2]
[426540678,1782571838000,-856.93352141,0.00013093,2]
[426540731,1782571838000,-856.93352141,0.00013093,2]
[426540674,1782571838000,-856.93352141,0.00013093,2]
[426540712,1782571838000,-856.93352141,0.00013093,2]
[426540715,1782571838000,-856.93352141,0.00013093,2]
[426540733,1782571838000,-856.93352141,0.00013093,2]
[426540738,1782571838000,-1500000.0,0.00013094,2]
[426540740,1782571838000,-235.8413985,0.00013094,2]
[426540736,1782571838000,-28862.3266,0.00013094,2]
[426540743,1782571838000,-1745.9459,0.00013095,2]
[426540755,1782571838000,-1000.0,0.00013193,2]
[426540710,1782571838000,-856.93352141,0.00013093,2]
[426540751,1782571838000,-410.48444221,0.00013096,2]
[426540749,1782571838000,-223.235,0.00013096,2]
[426540753,1782571838000,-1065.93341487,0.00013096,2]
[426540757,1782571838000,-1000.0,0.00013193,2]
[426540764,1782571838000,-9999.99,0.00013204,2]
[426540762,1782571838000,-7239.55,0.00013197,2]
[426540760,1782571838000,-2139.55,0.00013196,2]
[426540766,1782571838000,-151.0,0.00013213,2]
[426540675,1782571838000,-856.93352141,0.00013093,2]
[426540745,1782571838000,-150.0,0.00013095,2]
[426540729,1782571838000,-856.93352141,0.00013093,2]
[426540747,1782571838000,-2333.26,0.00013096,2]
[426540768,1782571838000,-150.0,0.00013213,2]
[426540717,1782571838000,-856.93352141,0.00013093,2]
[426540676,1782571838000,-856.93352141,0.00013093,2]
[426540684,1782571838000,-856.93352141,0.00013093,2]
[426540694,1782571838000,-856.93352141,0.00013093,2]
[426540696,1782571838000,-856.93352141,0.00013093,2]
[426540700,1782571838000,-856.93352141,0.00013093,2]
[426540688,1782571838000,-856.93352141,0.00013093,2]
[426540690,1782571838000,-856.93352141,0.00013093,2]
[426540702,1782571838000,-856.93352141,0.00013093,2]
[426540698,1782571838000,-856.93352141,0.00013093,2]
[426540686,1782571838000,-856.93352141,0.00013093,2]
[426540704,1782571838000,-856.93352141,0.00013093,2]
[426540706,1782571838000,-856.93352141,0.00013093,2]
[426540719,1782571838000,-856.93352141,0.00013093,2]
[426540721,1782571838000,-856.93352141,0.00013093,2]
[426540723,1782571838000,-856.93352141,0.00013093,2]
[426540725,1782571838000,-856.93352141,0.00013093,2]
[426540727,1782571838000,-856.93352141,0.00013093,2]
[426540692,1782571838000,-856.93352141,0.00013093,2]
[426540708,1782571838000,-856.93352141,0.00013093,2]
[426540844,1782571839000,-350.0,0.00014932,2]
[426540845,1782571839000,-500.0,0.00014985,2]
[426540846,1782571839000,-151.0,0.00014997,2]
[426540848,1782571839000,-151.0,0.00015,2]
[426540831,1782571839000,-2284.68375942,0.00014017,2]
[426540841,1782571839000,-490.53,0.00014511,2]
[426540842,1782571839000,-1065.93341487,0.00014608,2]
[426540836,1782571839000,-183.73152602,0.00014256,2]
[426540833,1782571839000,-1187.89,0.00014036,2]
[426540847,1782571839000,-699201.90253832,0.00015,2]
[426540834,1782571839000,-255.0,0.00014208,2]
[426540838,1782571839000,-1187.89,0.00014363,2]
[426540849,1782571839000,-151.0,0.00015,2]
[426540865,1782571839000,-6881.3001472,0.000162,2]
[426540850,1782571839000,-191899.951774,0.00015,2]
[426540860,1782571839000,-180.49301861,0.00016013,2]
[426540852,1782571839000,-396.28,0.00015068,2]
[426540858,1782571839000,-300.0,0.00016,2]
[426540859,1782571839000,-199.16248043,0.00016,2]
[426540857,1782571839000,-365.7,0.00015597,2]
[426540855,1782571839000,-433.0,0.00015413,2]
[426540854,1782571839000,-151.0,0.00015126,2]
[426540856,1782571839000,-204.69078989,0.00015446,2]
[426540872,1782571839000,-500.0,0.00016438,2]
[426540862,1782571839000,-3417.75026613,0.00016017,2]
[426540863,1782571839000,-1065.93341487,0.00016119,2]
[426540828,1782571839000,-1295.08517464,0.00014017,2]
[426540851,1782571839000,-150.0,0.00015031,2]
[426540826,1782571839000,-490.74551356,0.00014017,2]
[426540788,1782571839000,-151.0,0.0001331,2]
[426540816,1782571839000,-423.02601729,0.00013698,2]
[426540769,1782571839000,-151.0,0.00013213,2]
[426540780,1782571839000,-150.0,0.00013288,2]
[426540778,1782571839000,-160.0,0.00013228,2]
[426540784,1782571839000,-574.20583563,0.00013295,2]
[426540782,1782571839000,-150.0,0.00013288,2]
[426540774,1782571839000,-152.0,0.00013213,2]
[426540776,1782571839000,-150.0,0.00013213,2]
[426540771,1782571839000,-153.0,0.00013213,2]
[426540861,1782571839000,-189.87395337,0.00016013,2]
[426540786,1782571839000,-250.3392,0.00013297,2]
[426540790,1782571839000,-150.0,0.00013313,2]
[426540793,1782571839000,-1187.89,0.00013384,2]
[426540791,1782571839000,-152.0,0.00013313,2]
[426540812,1782571839000,-500.0,0.00013698,2]
[426540792,1782571839000,-150.0,0.00013313,2]
[426540803,1782571839000,-500.0,0.00013552,2]
[426540799,1782571839000,-500.0,0.00013552,2]
[426540805,1782571839000,-481.81,0.00013583,2]
[426540797,1782571839000,-500.0,0.00013552,2]
[426540801,1782571839000,-500.0,0.00013552,2]
[426540806,1782571839000,-500.0,0.00013698,2]
[426540818,1782571839000,-200.0,0.00013699,2]
[426540808,1782571839000,-500.0,0.00013698,2]
[426540810,1782571839000,-500.0,0.00013698,2]
[426540822,1782571839000,-1187.89,0.0001371,2]
[426540814,1782571839000,-500.0,0.00013698,2]
[426540824,1782571839000,-250.0,0.00014,2]
[426540820,1782571839000,-262.76,0.000137,2]
[426540795,1782571839000,-189.06,0.00013472,2]
[426540864,1782571839000,-388.224,0.000162,2]
[426540853,1782571839000,-481.81,0.00015092,2]
[426540866,1782571839000,-388.224,0.000163,2]
[426540902,1782571839000,-178.5,0.000169,2]
[426540903,1782571839000,-178.5,0.000169,2]
[426540909,1782571839000,-208.648524,0.00017011,2]
[426540908,1782571839000,-290.16949,0.00017011,2]
[426540904,1782571839000,-178.5,0.000169,2]
[426540905,1782571839000,-161.860674,0.00016926,2]
[426540910,1782571839000,-164.6,0.00017045,2]
[426540911,1782571839000,-189.87395337,0.00017156,2]
[426540907,1782571839000,-6881.3001472,0.00017,2]
[426540906,1782571839000,-225.101181,0.00016982,2]
[426540912,1782571839000,-365.7,0.00017156,2]
[426540925,1782571839000,-2201.56947983,0.00017372,2]
[426540924,1782571839000,-2201.56947983,0.00017347,2]
[426540901,1782571839000,-178.5,0.000169,2]
[426540914,1782571839000,-2201.56947983,0.00017261,2]
[426540927,1782571839000,-2201.56947983,0.0001739,2]
[426540913,1782571839000,-6881.3001472,0.000172,2]
[426540928,1782571839000,-279.8333075,0.00017391,2]
[426540918,1782571839000,-10000.0,0.00017272,2]
[426540916,1782571839000,-2201.56947983,0.00017271,2]
[426540920,1782571839000,-2201.56947983,0.00017298,2]
[426540923,1782571839000,-2201.56947983,0.00017341,2]
[426540921,1782571839000,-2201.56947983,0.00017319,2]
[426540919,1782571839000,-2201.56947983,0.00017273,2]
[426540922,1782571839000,-6111.0,0.00017328,2]
[426540930,1782571839000,-6881.3001472,0.000174,2]
[426540929,1782571839000,-2201.56947983,0.00017399,2]
[426540873,1782571839000,-500.0,0.00016438,2]
[426540926,1782571839000,-2201.56947983,0.00017383,2]
[426540899,1782571839000,-178.5,0.000169,2]
[426540931,1782571839000,-2201.56947983,0.00017409,2]
[426540893,1782571839000,-388.224,0.000168,2]
[426540894,1782571839000,-6881.3001472,0.000168,2]
[426540871,1782571839000,-500.0,0.00016438,2]
[426540868,1782571839000,-262.76,0.000164,2]
[426540869,1782571839000,-500.0,0.00016438,2]
[426540867,1782571839000,-6881.3001472,0.000163,2]
[426540875,1782571839000,-340.30886457,0.00016438,2]
[426540876,1782571839000,-500.0,0.00016438,2]
[426540874,1782571839000,-500.0,0.00016438,2]
[426540883,1782571839000,-5627.08,0.00016474,2]
[426540885,1782571839000,-6881.3001472,0.000165,2]
[426540880,1782571839000,-396.28,0.00016438,2]
[426540886,1782571839000,-784.0,0.000165,2]
[426540882,1782571839000,-666.32,0.00016474,2]
[426540878,1782571839000,-500.0,0.00016438,2]
[426540870,1782571839000,-500.0,0.00016438,2]
[426540884,1782571839000,-388.224,0.000165,2]
[426540881,1782571839000,-334.73,0.00016474,2]
[426540897,1782571839000,-178.5,0.000169,2]
[426540895,1782571839000,-178.5,0.000169,2]
[426540892,1782571839000,-736.0,0.00016722,2]
[426540891,1782571839000,-6881.3001472,0.000167,2]
[426540889,1782571839000,-5238.47348371,0.00016697,2]
[426540890,1782571839000,-388.224,0.000167,2]
[426540888,1782571839000,-481.81,0.00016601,2]
[426540898,1782571839000,-178.5,0.000169,2]
[426540887,1782571839000,-189.87395337,0.00016584,2]
[426540879,1782571839000,-500.0,0.00016438,2]
[426540877,1782571839000,-500.0,0.00016438,2]
[426540896,1782571839000,-178.5,0.000169,2]
[426540974,1782571840000,-1500.0,0.0001815,2]
[426540972,1782571840000,-481.81,0.0001811,2]
[426540968,1782571840000,-1343.31033819,0.00018,2]
[426540973,1782571840000,-206.0,0.0001815,2]
[426540964,1782571840000,-11576.41,0.00017728,2]
[426540969,1782571840000,-350.0,0.00018,2]
[426540971,1782571840000,-439.0,0.00018062,5]
[426540967,1782571840000,-5238.47348371,0.00017898,2]
[426540966,1782571840000,-168.413272,0.00017862,2]
[426540976,1782571840000,-165.863,0.00018218,2]
[426540965,1782571840000,-189.87395337,0.00017728,2]
[426540970,1782571840000,-349.16,0.00018,2]
[426540986,1782571840000,-189.87395337,0.000183,2]
[426540981,1782571840000,-221.0,0.00018218,2]
[426540978,1782571840000,-405.0,0.00018218,2]
[426540975,1782571840000,-1343.31033819,0.000182,2]
[426540977,1782571840000,-1365.552,0.00018218,2]
[426540979,1782571840000,-1234.592,0.00018218,2]
[426540985,1782571840000,-262.76,0.000183,2]
[426540983,1782571840000,-250.0,0.00018218,2]
[426540982,1782571840000,-210.068,0.00018218,2]
[426540984,1782571840000,-150.758,0.00018218,2]
[426540980,1782571840000,-150.0,0.00018218,2]
[426540988,1782571840000,-1343.31033819,0.000184,2]
[426540990,1782571840000,-1343.31033819,0.000185,2]
[426540963,1782571840000,-8790.64,0.00017728,2]
[426540998,1782571840000,-1023.91958843,0.00019,2]
[426540987,1782571840000,-770.71,0.00018329,2]
[426540960,1782571840000,-1500.0,0.00017602,2]
[426540945,1782571840000,-6881.3001472,0.000175,2]
[426540959,1782571840000,-2201.56947983,0.00017585,2]
[426540991,1782571840000,-161.37,0.00018698,2]
[426540933,1782571840000,-2201.56947983,0.00017424,2]
[426540934,1782571840000,-2201.56947983,0.00017432,2]
[426540932,1782571840000,-2201.56947983,0.00017423,2]
[426540938,1782571840000,-2201.56947983,0.00017448,2]
[426540939,1782571840000,-2201.56947983,0.00017451,2]
[426540940,1782571840000,-2201.56947983,0.00017456,2]
[426540936,1782571840000,-2201.56947983,0.00017437,2]
[426540935,1782571840000,-2201.56947983,0.00017436,2]
[426540941,1782571840000,-208.85807773,0.00017456,2]
[426540937,1782571840000,-2201.56947983,0.00017444,2]
[426540943,1782571840000,-2201.56947983,0.00017463,2]
[426540942,1782571840000,-15000.0,0.00017458,2]
[426540961,1782571840000,-1065.93341487,0.00017631,2]
[426540944,1782571840000,-15000.0,0.00017493,2]
[426540950,1782571840000,-2201.56947983,0.00017524,2]
[426540946,1782571840000,-2201.56947983,0.000175,2]
[426540947,1782571840000,-2201.56947983,0.00017503,2]
[426540948,1782571840000,-6111.0,0.00017509,2]
[426540952,1782571840000,-1500.0,0.00017535,2]
[426540962,1782571840000,-6881.3001472,0.000177,2]
[426540951,1782571840000,-1500.0,0.00017535,2]
[426540954,1782571840000,-10000.0,0.00017546,2]
[426540955,1782571840000,-2201.56947983,0.00017548,2]
[426540956,1782571840000,-2201.56947983,0.00017552,2]
[426540957,1782571840000,-2201.56947983,0.00017567,2]
[426540953,1782571840000,-1500.0,0.00017535,2]
[426540958,1782571840000,-2201.56947983,0.00017584,2]
[426540949,1782571840000,-2201.56947983,0.00017519,2]
[426540989,1782571840000,-182.87,0.00018412,2]
[426541046,1782571840000,-151.0,0.0002089,2]
[426540999,1782571840000,-4624.3296,0.00019017,2]
[426541038,1782571840000,-151.0,0.0002089,2]
[426541039,1782571840000,-151.0,0.0002089,2]
[426541041,1782571840000,-151.0,0.0002089,2]
[426541026,1782571840000,-1065.93341487,0.00020654,2]
[426541028,1782571840000,-151.0,0.0002089,2]
[426541036,1782571840000,-151.0,0.0002089,2]
[426541030,1782571840000,-151.0,0.0002089,2]
[426541034,1782571840000,-151.0,0.0002089,2]
[426541032,1782571840000,-151.0,0.0002089,2]
[426541031,1782571840000,-151.0,0.0002089,2]
[426541033,1782571840000,-151.0,0.0002089,2]
[426541029,1782571840000,-152.26269015,0.0002089,2]
[426541035,1782571840000,-1182.8212258,0.0002089,2]
[426541027,1782571840000,-174.13974192,0.0002089,2]
[426541042,1782571840000,-151.0,0.0002089,2]
[426541044,1782571840000,-151.0,0.0002089,2]
[426541050,1782571840000,-151.0,0.0002089,2]
[426541047,1782571840000,-151.0,0.0002089,2]
[426541049,1782571840000,-151.0,0.0002089,2]
[426541048,1782571840000,-151.0,0.0002089,2]
[426541043,1782571840000,-151.0,0.0002089,2]
[426541054,1782571840000,-352.0,0.00021,2]
[426541053,1782571840000,-315.0,0.00021,2]
[426541051,1782571840000,-151.0,0.0002089,2]
[426541055,1782571840000,-233.0,0.00021,2]
[426541052,1782571840000,-227.0,0.00021,2]
[426540992,1782571840000,-1500.0,0.00018698,2]
[426541056,1782571840000,-153.0,0.00021,2]
[426541045,1782571840000,-151.0,0.0002089,2]
[426541022,1782571840000,-175.0,0.0002,2]
[426541057,1782571840000,-343.0,0.00021,2]
[426541017,1782571840000,-162.50414315,0.0002,2]
[426541023,1782571840000,-419.62,0.0002,2]
[426540993,1782571840000,-1343.31033819,0.000187,2]
[426540996,1782571840000,-484878.20719643,0.00019,2]
[426540994,1782571840000,-365.7,0.00018716,2]
[426540997,1782571840000,-4292.41437361,0.00019,2]
[426541001,1782571840000,-447.0,0.00019054,5]
[426541013,1782571840000,-227.0,0.0002,2]
[426541011,1782571840000,-500.0,0.00019699,2]
[426541004,1782571840000,-507.77,0.00019178,2]
[426541000,1782571840000,-454.0,0.00019054,5]
[426541007,1782571840000,-173.28503155,0.00019178,2]
[426541009,1782571840000,-231.6568292,0.000194,2]
[426541008,1782571840000,-501.74,0.00019355,7]
[426541005,1782571840000,-500.0,0.00019178,2]
[426540995,1782571840000,-151.0,0.00018997,2]
[426541002,1782571840000,-5238.47348371,0.00019098,2]
[426541003,1782571840000,-1065.93341487,0.00019142,2]
[426541024,1782571840000,-5238.47348371,0.00020299,2]
[426541019,1782571840000,-154.20718968,0.0002,2]
[426541020,1782571840000,-153.0,0.0002,2]
[426541021,1782571840000,-343.0,0.0002,2]
[426541025,1782571840000,-1000.0,0.00020327,2]
[426541015,1782571840000,-400.0,0.0002,2]
[426541016,1782571840000,-352.0,0.0002,2]
[426541014,1782571840000,-315.0,0.0002,2]
[426541006,1782571840000,-500.0,0.00019178,2]
[426541012,1782571840000,-410.48444219,0.00019892,2]
[426541010,1782571840000,-3004.09281809,0.00019621,2]
[426541018,1782571840000,-233.0,0.0002,2]
[426541097,1782571841000,-185.0,0.00022865,10]
[426541100,1782571841000,-352.0,0.00023,2]
[426541098,1782571841000,-227.0,0.00023,2]
[426541096,1782571841000,-152.26269015,0.00022808,2]
[426541099,1782571841000,-315.0,0.00023,2]
[426541088,1782571841000,-156.84109195,0.00022276,2]
[426541102,1782571841000,-343.0,0.00023,2]
[426541094,1782571841000,-2000.0,0.000226,2]
[426541087,1782571841000,-152.26269015,0.0002226,2]
[426541090,1782571841000,-802.51,0.00022466,2]
[426541091,1782571841000,-1874.54,0.00022466,2]
[426541101,1782571841000,-233.0,0.00023,2]
[426541103,1782571841000,-175.0,0.00023,2]
[426541105,1782571841000,-419.62,0.00023171,7]
[426541104,1782571841000,-152.26269015,0.00023082,2]
[426541106,1782571841000,-46547.52429159,0.0002325,2]
[426541112,1782571841000,-152.01787261,0.00023809,2]
[426541110,1782571841000,-152.26269015,0.0002363,2]
[426541114,1782571841000,-158.20766734,0.00023809,2]
[426541107,1782571841000,-154.42815987,0.00023288,2]
[426541108,1782571841000,-2000.0,0.000233,2]
[426541109,1782571841000,-152.26269015,0.00023356,2]
[426541115,1782571841000,-172.38506668,0.00023858,2]
[426541111,1782571841000,-1065.93341487,0.00023677,2]
[426541113,1782571841000,-165.12578319,0.00023809,2]
[426541089,1782571841000,-1637.69,0.00022466,2]
[426541117,1782571841000,-182.86355857,0.00023858,2]
[426541095,1782571841000,-5238.47348371,0.000227,2]
[426541086,1782571841000,-1065.93341487,0.00022165,2]
[426541079,1782571841000,-5237.43,0.00022,2]
[426541084,1782571841000,-175.0,0.00022,2]
[426541127,1782571841000,-129633.62687944,0.00024,2]
[426541061,1782571841000,-1361.0,0.00021218,2]
[426541066,1782571841000,-5238.47348371,0.00021499,2]
[426541063,1782571841000,-1230.0,0.00021218,2]
[426541062,1782571841000,-282.0,0.00021218,2]
[426541060,1782571841000,-262.76,0.000212,2]
[426541067,1782571841000,-1141.53933699,0.000215,2]
[426541058,1782571841000,-175.0,0.00021,2]
[426541064,1782571841000,-150.0,0.00021218,2]
[426541059,1782571841000,-152.26269015,0.00021164,2]
[426541065,1782571841000,-152.26269015,0.00021438,2]
[426541068,1782571841000,-419.62,0.00021585,2]
[426541070,1782571841000,-287.0,0.000218,2]
[426541071,1782571841000,-5000.0,0.00021918,2]
[426541075,1782571841000,-450.0,0.00022,2]
[426541077,1782571841000,-50000.0,0.00022,2]
[426541078,1782571841000,-2374.29,0.00022,2]
[426541074,1782571841000,-315.0,0.00022,2]
[426541073,1782571841000,-227.0,0.00022,2]
[426541069,1782571841000,-152.26269015,0.00021712,2]
[426541080,1782571841000,-233.0,0.00022,2]
[426541072,1782571841000,-152.26269015,0.00021986,2]
[426541076,1782571841000,-352.0,0.00022,2]
[426541082,1782571841000,-155.5238928,0.00022,2]
[426541092,1782571841000,-2000.0,0.000225,2]
[426541093,1782571841000,-152.26269015,0.00022534,2]
[426541083,1782571841000,-343.0,0.00022,2]
[426541085,1782571841000,-379.49,0.00022,2]
[426541118,1782571841000,-177.89027013,0.00023858,2]
[426541081,1782571841000,-523.74,0.00022,2]
[426541116,1782571841000,-190.41542669,0.00023858,2]
[426541177,1782571841000,-573.78,0.00024998,2]
[426541147,1782571841000,-644.5,0.00024176,2]
[426541149,1782571841000,-248.7,0.00024176,2]
[426541155,1782571841000,-282.0,0.00024218,2]
[426541157,1782571841000,-150.0,0.00024218,2]
[426541160,1782571841000,-185.17,0.0002426,2]
[426541159,1782571841000,-248.7,0.0002426,2]
[426541158,1782571841000,-151.0,0.0002426,2]
[426541161,1782571841000,-156.84109195,0.00024276,2]
[426541164,1782571841000,-163.25567929,0.00024657,2]
[426541166,1782571841000,-177.23,0.00024658,2]
[426541163,1782571841000,-379.49,0.00024573,7]